fUSD/lending_fUSD_20250120
["ID","MTS","AMOUNT","RATE_DAILY","PERIOD"]
[349753953,1737413467836,-500.0,0.00020547,2]
[349753954,1737413467846,-2404.67,0.00020547,2]
[349753955,1737413467855,-1285.53,0.00020547,2]
[349753956,1737413467865,-458.44502557,0.00020547,2]
[349753957,1737413467875,-516.56,0.00020547,2]
[349753958,1737413467885,-622.58,0.00020547,2]
[349753959,1737413467895,-500.0,0.00020547,2]
[349753960,1737413467905,-500.0,0.00020547,2]
[349753961,1737413467914,-500.0,0.00020547,2]
[349753962,1737413467924,-1545.38,0.00020547,2]
[349753963,1737413467935,-500.0,0.00020547,2]
[349753964,1737413467944,-500.0,0.00020547,2]
[349753965,1737413467954,-2498.45,0.00020547,2]
[349753966,1737413467964,-500.0,0.00020547,2]
[349753967,1737413467973,-500.0,0.00020547,2]
[349753968,1737413467983,-1528.46,0.00020547,2]
[349753969,1737413467993,-500.0,0.00020547,2]
[349753970,1737413468003,-500.0,0.00020547,2]
[349753971,1737413468012,-3714.97,0.00020547,2]
[349753972,1737413468022,-1768.18,0.00020547,2]
[349753973,1737413468031,-500.0,0.00020547,2]
[349753974,1737413468040,-2404.9,0.00020547,2]
[349753975,1737413468050,-1018.93,0.00020547,2]
[349753976,1737413468060,-500.0,0.00020547,2]
[349753977,1737413468069,-664.32,0.00020547,2]
[349753978,1737413468079,-1006.19,0.00020547,2]
[349753979,1737413468089,-3714.06,0.00020547,2]
[349753980,1737413468099,-500.0,0.00020547,2]
[349753981,1737413468108,-925.74,0.00020547,2]
[349753982,1737413468118,-500.0,0.00020547,2]
[349753983,1737413468127,-632.97,0.00020547,2]
[349753984,1737413468137,-500.0,0.00020547,2]
[349753985,1737413468146,-2070.27,0.00020547,2]
[349753986,1737413468156,-500.0,0.00020547,2]
[349753987,1737413468166,-1247.49,0.00020547,2]
[349753988,1737413468175,-655.67,0.00020547,2]
[349753989,1737413468186,-500.0,0.00020547,2]
[349753990,1737413468196,-500.0,0.00020547,2]
[349753991,1737413468205,-734.26,0.00020547,2]
[349753992,1737413468215,-1029.79,0.00020547,2]
[349753993,1737413468226,-500.0,0.00020547,2]
[349753994,1737413468236,-500.0,0.00020547,2]
[349753995,1737413468246,-1125.45,0.00020547,2]
[349753996,1737413468256,-1781.2,0.00020547,2]
[349753997,1737413468267,-500.0,0.00020547,2]
[349753998,1737413468276,-500.0,0.00020547,2]
[349753999,1737413468285,-1246.2,0.00020547,2]
[349754000,1737413468295,-1253.16,0.00020547,2]
[349754001,1737413468304,-500.0,0.00020547,2]
[349754002,1737413468314,-500.0,0.00020547,2]
[349754003,1737413468323,-500.0,0.00020547,2]
[349754004,1737413468332,-500.0,0.00020547,2]
[349754005,1737413468342,-500.0,0.00020547,2]
[349754006,1737413468352,-1118.64,0.00020547,2]
[349754007,1737413468361,-500.0,0.00020547,2]
[349754008,1737413468370,-719.99,0.00020547,2]
[349754009,1737413468378,-500.0,0.00020547,2]
[349754010,1737413468388,-500.0,0.00020547,2]
[349754011,1737413468398,-500.0,0.00020547,2]
[349754012,1737413468408,-500.0,0.00020547,2]
[349754013,1737413468417,-500.0,0.00020547,2]
[349754014,1737413468427,-864.45,0.00020547,2]
[349754015,1737413468436,-3211.18,0.00020547,2]
[349754016,1737413468446,-1259.28,0.00020547,2]
[349754017,1737413468456,-500.0,0.00020547,2]
[349754018,1737413468466,-584.09,0.00020547,2]
[349754019,1737413468475,-500.0,0.00020547,2]
[349754020,1737413468484,-500.0,0.00020547,2]
[349754021,1737413468494,-500.0,0.00020547,2]
[349754022,1737413468503,-500.0,0.00020547,2]
[349754023,1737413468513,-500.0,0.00020547,2]
[349754024,1737413468522,-500.0,0.00020547,2]
[349754025,1737413468532,-1439.49,0.00020547,2]
[349754026,1737413468542,-2420.13,0.00020547,2]
[349754027,1737413468551,-1512.65,0.00020547,2]
[349754028,1737413468561,-500.0,0.00020547,2]
[349754029,1737413468570,-513.86874534,0.00020547,2]
[349754030,1737413468580,-804.6,0.00020547,2]
[349754031,1737413468590,-1094.44,0.00020547,2]
[349754032,1737413468600,-4105.14,0.00020547,2]
[349754033,1737413468609,-500.0,0.00020547,2]
[349754034,1737413468618,-2309.98,0.00020547,2]
[349754035,1737413468628,-1161.24,0.00020547,2]
[349754036,1737413468637,-500.0,0.00020547,2]
[349754037,1737413468647,-1549.06,0.00020547,2]
[349754038,1737413468656,-1981.88,0.00020547,2]
[349754039,1737413468666,-1608.56,0.00020547,2]
[349754040,1737413468676,-217.65301949,0.00020547,2]
[349754041,1737413468686,-1093.11,0.00020547,2]
[349754042,1737413468695,-845.76,0.00020547,2]
[349754043,1737413468706,-500.0,0.00020547,2]
[349754044,1737413468715,-500.0,0.00020547,2]
[349754045,1737413468724,-2649.0,0.00020547,2]
[349754046,1737413468734,-500.0,0.00020547,2]
[349754047,1737413468744,-500.0,0.00020547,2]
[349754048,1737413468754,-881.77,0.00020547,2]
[349754049,1737413468763,-1503.8,0.00020547,2]
[349754050,1737413468773,-1140.51,0.00020547,2]
[349754051,1737413468783,-2925.51,0.00020547,2]
[349754052,1737413468792,-548.07022243,0.00020547,2]
[349754053,1737413468802,-577.32,0.00020547,2]
[349754054,1737413468812,-500.0,0.00020547,2]
[349754055,1737413468821,-500.0,0.00020547,2]
[349754056,1737413468831,-927.97,0.00020547,2]
[349754057,1737413468840,-525.08459881,0.00020547,2]
[349754058,1737413468850,-2594.35,0.00020547,2]
[349754059,1737413468859,-500.0,0.00020547,2]
[349754060,1737413468869,-500.0,0.00020547,2]
[349754061,1737413468879,-507.59,0.00020547,2]
[349754062,1737413468888,-500.0,0.00020547,2]
[349754063,1737413468897,-500.0,0.00020547,2]
[349754064,1737413468906,-500.0,0.00020547,2]
[349754065,1737413468916,-500.0,0.00020547,2]
[349754066,1737413468925,-649.35,0.00020547,2]
[349754067,1737413468935,-1661.79,0.00020547,2]
[349754068,1737413468945,-1410.08,0.00020547,2]
[349754069,1737413468954,-848.08,0.00020547,2]
[349754070,1737413469080,-500.0,0.00020547,2]
[349754071,1737413469091,-2182.08,0.00020547,2]
[349754072,1737413469100,-204.55255995,0.00020567,2]
[349754073,1737413469110,-688.86947225,0.00020626,2]
[349754074,1737413469119,-31881.03002702,0.00020646,2]
[349754075,1737413469128,-22308.13201168,0.00020646,2]
[349754076,1737413469138,-189.22168766,0.00020691,2]
[349754077,1737413469147,-150.0,0.00020692,2]
[349754078,1737413469157,-204.55255995,0.000207,2]
[349754079,1737413469167,-832.0,0.00020721,2]
[349754080,1737413469177,-1720.31,0.00020721,2]
[349754081,1737413469189,-500.0,0.00020721,2]
[349754082,1737413469199,-500.0,0.00020721,2]
[349754083,1737413469208,-1971.63,0.00020721,2]
[349754084,1737413469218,-675.9,0.00020721,2]
[349754085,1737413469227,-500.0,0.00020721,2]
[349754086,1737413469237,-629.03,0.00020721,2]
[349754087,1737413469247,-554.35,0.00020721,2]
[349754088,1737413469259,-862.45,0.00020721,2]
[349754089,1737413469269,-760.23,0.00020721,2]
[349754090,1737413469278,-1302.02,0.00020721,2]
[349754091,1737413469288,-931.99,0.00020721,2]
[349754092,1737413469297,-734.92,0.00020721,2]
[349754093,1737413469308,-2217.99,0.00020721,2]
[349754094,1737413469318,-4359.78,0.00020721,2]
[349754095,1737413469328,-691.85,0.00020721,2]
[349754096,1737413469337,-736.95,0.00020721,2]
[349754097,1737413469347,-2335.99,0.00020721,2]
[349754098,1737413469357,-500.0,0.00020721,2]
[349754099,1737413469367,-753.44,0.00020721,2]
[349754100,1737413469376,-1162.69,0.00020721,2]
[349754101,1737413469386,-515.31,0.00020758,2]
[349754102,1737413469396,-500.0,0.00020821,2]
[349754103,1737413469405,-500.0,0.00020821,2]
[349754104,1737413469414,-544.3,0.00020821,2]
[349754105,1737413469423,-500.0,0.00020821,2]
[349754106,1737413469433,-500.0,0.00020821,2]
[349754107,1737413469441,-465.07053702,0.00020821,2]
[349754108,1737413469451,-500.0,0.00020821,2]
[349754109,1737413469460,-193.88,0.00020821,2]
[349754110,1737413469470,-500.0,0.00020821,2]
[349754111,1737413469480,-500.0,0.00020821,2]
[349754112,1737413469490,-668.05,0.00020821,2]
[349754113,1737413469499,-505.78,0.00020821,2]
[349754114,1737413469508,-569.13,0.00020821,2]
[349754115,1737413469517,-500.0,0.00020821,2]
[349754116,1737413469525,-621.99,0.00020821,2]
[349754117,1737413469534,-628.24,0.00020821,2]
[349754118,1737413469548,-500.0,0.00020821,2]
[349754119,1737413469557,-500.0,0.00020821,2]
[349754120,1737413469567,-1327.66,0.00020821,2]
[349754121,1737413469576,-500.0,0.00020821,2]
[349754122,1737413469586,-500.0,0.00020821,2]
[349754123,1737413469596,-500.0,0.00020821,2]
[349754124,1737413469605,-500.0,0.00020821,2]
[349754125,1737413469615,-205.26655479,0.00020821,2]
[349754126,1737413469625,-500.0,0.00020821,2]
[349754127,1737413469634,-500.0,0.00020821,2]
[349754128,1737413469643,-500.0,0.00020821,2]
[349754129,1737413469652,-561.33,0.00020821,2]
[349754130,1737413469662,-161.12690394,0.00020821,2]
[349754131,1737413469671,-500.0,0.00020821,2]
[349754132,1737413469681,-500.0,0.00020821,2]
[349754133,1737413469690,-500.0,0.00020821,2]
[349754134,1737413469699,-500.0,0.00020821,2]
[349754135,1737413469708,-500.0,0.00020821,2]
[349754136,1737413469718,-500.0,0.00020821,2]
[349754137,1737413469728,-501.3,0.00020821,2]
[349754138,1737413469738,-528.71,0.00020821,2]
[349754139,1737413469747,-500.0,0.00020821,2]
[349754140,1737413469757,-500.0,0.00020821,2]
[349754141,1737413469766,-500.0,0.00020821,2]
[349754142,1737413469776,-500.0,0.00020821,2]
[349754143,1737413469785,-500.0,0.00020821,2]
[349754144,1737413469795,-500.0,0.00020821,2]
[349754145,1737413469805,-586.84,0.00020821,2]
[349754146,1737413469815,-500.0,0.00020821,2]
[349754147,1737413469824,-500.0,0.00020821,2]
[349754148,1737413469833,-500.0,0.00020821,2]
[349754149,1737413469843,-501.588696,0.00020821,2]
[349754150,1737413469852,-381.7251839,0.00020821,2]
[349754151,1737413469861,-500.0,0.00020821,2]
[349754152,1737413469871,-500.0,0.00020821,2]
[349754153,1737413469880,-159.291083,0.00020821,2]
[349754154,1737413469889,-500.0,0.00020821,2]
[349754155,1737413469899,-500.0,0.00020821,2]
[349754156,1737413469909,-500.0,0.00020821,2]
[349754157,1737413469918,-500.0,0.00020821,2]
[349754158,1737413469928,-614.99,0.00020821,2]
[349754159,1737413469937,-500.0,0.00020821,2]
[349754160,1737413469946,-383.683733,0.00020821,2]
[349754161,1737413469956,-500.0,0.00020821,2]
[349754162,1737413469966,-500.0,0.00020821,2]
[349754163,1737413469975,-500.0,0.00020821,2]
[349754164,1737413469985,-500.0,0.00020821,2]
[349754165,1737413469994,-670.14,0.00020821,2]
[349754166,1737413470004,-316.41871707,0.00020821,2]
[349754167,1737413470014,-500.0,0.00020821,2]
[349754168,1737413470023,-172.65617786,0.00020821,2]
[349754169,1737413470033,-500.0,0.00020821,2]
[349754170,1737413470042,-500.0,0.00020821,2]
[349754171,1737413470052,-500.0,0.00020821,2]
[349754172,1737413470062,-548.03150293,0.00020821,2]
[349754173,1737413470071,-500.0,0.00020821,2]
[349754174,1737413470082,-619.69,0.00020821,2]
[349754175,1737413470091,-500.0,0.00020821,2]
[349754176,1737413470101,-500.0,0.00020821,2]
[349754177,1737413470110,-500.0,0.00020821,2]
[349754178,1737413470120,-500.0,0.00020821,2]
[349754179,1737413470129,-500.0,0.00020821,2]
[349754180,1737413470139,-500.0,0.00020821,2]
[349754181,1737413470148,-500.0,0.00020821,2]
[349754182,1737413470158,-525.82738832,0.00020821,2]
[349754183,1737413470167,-500.0,0.00020821,2]
[349754184,1737413470177,-500.0,0.00020821,2]
[349754185,1737413470191,-500.0,0.00020821,2]
[349754186,1737413470200,-500.0,0.00020821,2]
[349754187,1737413470210,-500.0,0.00020821,2]
[349754188,1737413470220,-644.46,0.00020821,2]
[349754189,1737413470230,-500.0,0.00020821,2]
[349754190,1737413470240,-500.0,0.00020821,2]
[349754191,1737413470251,-500.0,0.00020821,2]
[349754192,1737413470262,-500.0,0.00020821,2]
[349754193,1737413470271,-500.0,0.00020821,2]
[349754194,1737413470280,-500.0,0.00020821,2]
[349754195,1737413470290,-500.0,0.00020821,2]
[349754196,1737413470299,-500.0,0.00020821,2]
[349754197,1737413470310,-500.0,0.00020821,2]
[349754198,1737413470320,-500.0,0.00020821,2]
[349754199,1737413470329,-751.43,0.00020821,2]
[349754200,1737413470339,-172.72204773,0.00020821,2]
[349754201,1737413470349,-500.0,0.00020821,2]
[349754202,1737413470359,-500.0,0.00020821,2]
[349754203,1737413470368,-500.0,0.00020821,2]
[349754204,1737413470377,-500.0,0.00020821,2]
[349754205,1737413470387,-500.0,0.00020821,2]
[349754206,1737413470397,-500.0,0.00020821,2]
[349754207,1737413470406,-3094.83,0.00020821,2]
[349754208,1737413470415,-779.28,0.00020821,2]
[349754209,1737413470424,-681.53,0.00020821,2]
[349754210,1737413470433,-241.7257082,0.00020821,2]
[349754211,1737413470442,-500.0,0.00020821,2]
[349754212,1737413470452,-731.31,0.00020821,2]
[349754213,1737413470461,-706.91,0.00020821,2]
[349754214,1737413470471,-500.0,0.00020821,2]
[349754215,1737413470481,-2293.51,0.00020821,2]
[349754216,1737413470490,-748.4,0.00020821,2]
[349754217,1737413470500,-500.0,0.00020821,2]
[349754218,1737413470509,-848.41,0.00020821,2]
[349754219,1737413470519,-564.27,0.00020821,2]
[349754220,1737413470528,-500.0,0.00020821,2]
[349754221,1737413470538,-654.07,0.00020821,2]
[349754222,1737413470547,-500.0,0.00020821,2]
[349754223,1737413470556,-1248.73,0.00020821,2]
[349754224,1737413470566,-2758.73,0.00020821,2]
[349754225,1737413470578,-500.0,0.00020821,2]
[349754226,1737413470588,-500.0,0.00020821,2]
[349754227,1737413470597,-2295.91,0.00020821,2]
[349754228,1737413470607,-500.0,0.00020821,2]
[349754229,1737413470616,-1000.0,0.00020821,2]
[349754230,1737413470625,-646.18,0.00020821,2]
[349754231,1737413470634,-1564.22,0.00020821,2]
[349754232,1737413470643,-472.02609748,0.00020821,2]
[349754233,1737413470652,-500.0,0.00020821,2]
[349754234,1737413470662,-500.07,0.00020821,2]
[349754235,1737413470671,-500.0,0.00020821,2]
[349754236,1737413470680,-683.62,0.00020821,2]
[349754237,1737413470690,-500.0,0.00020821,2]
[349754238,1737413470700,-722.8,0.00020821,2]
[349754239,1737413470710,-697.29,0.00020821,2]
[349754240,1737413470720,-898.11,0.00020821,2]
[349754241,1737413470729,-500.0,0.00020821,2]
[349754242,1737413470739,-500.0,0.00020821,2]
[349754243,1737413470749,-500.0,0.00020821,2]
[349754244,1737413470759,-2305.31,0.00020821,2]
[349754245,1737413470768,-500.0,0.00020821,2]
[349754246,1737413470778,-812.06,0.00020821,2]
[349754247,1737413470787,-500.0,0.00020821,2]
[349754248,1737413470796,-500.0,0.00020821,2]
[349754249,1737413470806,-500.0,0.00020821,2]
[349754250,1737413470816,-500.0,0.00020821,2]
[349754251,1737413470825,-500.0,0.00020821,2]
[349754252,1737413470835,-500.0,0.00020821,2]
[349754253,1737413470845,-707.47,0.00020821,2]
[349754254,1737413470855,-500.0,0.00020821,2]
[349754255,1737413470865,-2089.96,0.00020821,2]
[349754256,1737413470874,-500.0,0.00020821,2]
[349754257,1737413470883,-2404.67,0.00020821,2]
[349754258,1737413470893,-1285.53,0.00020821,2]
[349754259,1737413470903,-516.56,0.00020821,2]
[349754260,1737413470913,-622.58,0.00020821,2]
[349754261,1737413470922,-526.32024082,0.00020821,2]
[349754262,1737413470932,-500.0,0.00020821,2]
[349754263,1737413470942,-1545.38,0.00020821,2]
[349754264,1737413470951,-500.0,0.00020821,2]
[349754265,1737413470961,-500.0,0.00020821,2]
[349754266,1737413470971,-2498.45,0.00020821,2]
[349754267,1737413470982,-500.0,0.00020821,2]
[349754268,1737413470991,-501.81632654,0.00020821,2]
[349754269,1737413471001,-1528.46,0.00020821,2]
[349754270,1737413471011,-500.0,0.00020821,2]
[349754271,1737413471019,-500.0,0.00020821,2]
[349754272,1737413471029,-3714.97,0.00020821,2]
[349754273,1737413471039,-1768.18,0.00020821,2]
[349754274,1737413471048,-500.0,0.00020821,2]
[349754275,1737413471058,-2404.9,0.00020821,2]
[349754276,1737413471067,-1018.93,0.00020821,2]
[349754277,1737413471077,-509.12970002,0.00020821,2]
[349754278,1737413471087,-664.32,0.00020821,2]
[349754279,1737413471097,-1006.19,0.00020821,2]
[349754280,1737413471106,-3714.06,0.00020821,2]
[349754281,1737413471116,-500.0,0.00020821,2]
[349754282,1737413471125,-925.74,0.00020821,2]
[349754283,1737413471135,-192.01320334,0.00020821,2]
[349754284,1737413471144,-632.97,0.00020821,2]
[349754285,1737413471154,-2070.27,0.00020821,2]
[349754286,1737413471163,-1247.49,0.00020821,2]
[349754287,1737413471173,-655.67,0.00020821,2]
[349754288,1737413471296,-734.26,0.00020821,2]
[349754289,1737413471306,-1029.79,0.00020821,2]
[349754290,1737413471315,-500.0,0.00020821,2]
[349754291,1737413471324,-500.0,0.00020821,2]
[349754292,1737413471334,-1125.45,0.00020821,2]
[349754293,1737413471346,-1781.2,0.00020821,2]
[349754294,1737413471356,-500.0,0.00020821,2]
[349754295,1737413471366,-500.0,0.00020821,2]
[349754296,1737413471375,-1246.2,0.00020821,2]
[349754297,1737413471385,-1253.16,0.00020821,2]
[349754298,1737413471394,-500.0,0.00020821,2]
[349754299,1737413471403,-500.0,0.00020821,2]
[349754300,1737413471413,-500.0,0.00020821,2]
[349754301,1737413471422,-500.0,0.00020821,2]
[349754302,1737413471432,-1118.64,0.00020821,2]
[349754303,1737413471441,-521.9754756,0.00020821,2]
[349754304,1737413471451,-719.99,0.00020821,2]
[349754305,1737413471460,-500.0,0.00020821,2]
[349754306,1737413471470,-500.0,0.00020821,2]
[349754307,1737413471480,-500.0,0.00020821,2]
[349754308,1737413471489,-500.0,0.00020821,2]
[349754309,1737413471499,-864.45,0.00020821,2]
[349754310,1737413471508,-3211.18,0.00020821,2]
[349754311,1737413471517,-1259.28,0.00020821,2]
[349754312,1737413471527,-584.09,0.00020821,2]
[349754313,1737413471536,-500.0,0.00020821,2]
[349754314,1737413471545,-500.0,0.00020821,2]
[349754315,1737413471555,-500.0,0.00020821,2]
[349754316,1737413471564,-500.0,0.00020821,2]
[349754317,1737413471574,-1439.49,0.00020821,2]
[349754318,1737413471584,-2420.13,0.00020821,2]
[349754319,1737413471593,-1512.65,0.00020821,2]
[349754320,1737413471603,-500.0,0.00020821,2]
[349754321,1737413471612,-804.6,0.00020821,2]
[349754322,1737413471622,-1094.44,0.00020821,2]
[349754323,1737413471632,-4105.14,0.00020821,2]
[349754324,1737413471641,-500.0,0.00020821,2]
[349754325,1737413471651,-2309.98,0.00020821,2]
[349754326,1737413471661,-1161.24,0.00020821,2]
[349754327,1737413471670,-500.0,0.00020821,2]
[349754328,1737413471680,-1549.06,0.00020821,2]
[349754329,1737413471690,-1981.88,0.00020821,2]
[349754330,1737413471699,-1608.56,0.00020821,2]
[349754331,1737413471708,-1093.11,0.00020821,2]
[349754332,1737413471717,-845.76,0.00020821,2]
[349754333,1737413471727,-500.0,0.00020821,2]
[349754334,1737413471736,-500.0,0.00020821,2]
[349754335,1737413471745,-2649.0,0.00020821,2]
[349754336,1737413471755,-500.0,0.00020821,2]
[349754337,1737413471764,-500.0,0.00020821,2]
[349754338,1737413471774,-881.77,0.00020821,2]
[349754339,1737413471784,-1503.8,0.00020821,2]
[349754340,1737413471793,-1140.51,0.00020821,2]
[349754341,1737413471803,-2925.51,0.00020821,2]
[349754342,1737413471812,-577.32,0.00020821,2]
[349754343,1737413471822,-500.0,0.00020821,2]
[349754344,1737413471831,-500.0,0.00020821,2]
[349754345,1737413471841,-927.97,0.00020821,2]
[349754346,1737413471850,-2594.35,0.00020821,2]
[349754347,1737413471860,-500.0,0.00020821,2]
[349754348,1737413471869,-507.59,0.00020821,2]
[349754349,1737413471879,-500.0,0.00020821,2]
[349754350,1737413471888,-500.0,0.00020821,2]
[349754351,1737413471897,-500.0,0.00020821,2]
[349754352,1737413471907,-500.0,0.00020821,2]
[349754353,1737413471916,-649.35,0.00020821,2]
[349754354,1737413471926,-1661.79,0.00020821,2]
[349754355,1737413471936,-1410.08,0.00020821,2]
[349754356,1737413471946,-848.08,0.00020821,2]
[349754357,1737413471956,-2182.08,0.00020821,2]
[349754358,1737413471966,-204.55255995,0.00020833,2]
[349754359,1737413471976,-161.593,0.000209,2]
[349754360,1737413471985,-152.0,0.00020921,3]
[349754361,1737413471994,-31881.03002702,0.00020959,2]
[349754362,1737413472003,-22308.13201168,0.00020959,2]
[349754363,1737413472013,-1543.55,0.0002096,2]
[349754364,1737413472022,-204.55255995,0.00020967,2]
[349754365,1737413472031,-500.0,0.00020994,2]
[349754366,1737413472041,-832.0,0.00020995,2]
[349754367,1737413472050,-1720.31,0.00020995,2]
[349754368,1737413472059,-500.0,0.00020995,2]
[349754369,1737413472068,-500.0,0.00020995,2]
[349754370,1737413472078,-1971.63,0.00020995,2]
[349754371,1737413472088,-675.9,0.00020995,2]
[349754372,1737413472097,-500.0,0.00020995,2]
[349754373,1737413472107,-629.03,0.00020995,2]
[349754374,1737413472117,-554.35,0.00020995,2]
[349754375,1737413472127,-862.45,0.00020995,2]
[349754376,1737413472137,-760.23,0.00020995,2]
[349754377,1737413472147,-1302.02,0.00020995,2]
[349754378,1737413472156,-931.99,0.00020995,2]
[349754379,1737413472166,-734.92,0.00020995,2]
[349754380,1737413472175,-2217.99,0.00020995,2]
[349754381,1737413472187,-4359.78,0.00020995,2]
[349754382,1737413472196,-691.85,0.00020995,2]
[349754383,1737413472207,-736.95,0.00020995,2]
[349754384,1737413472217,-2335.99,0.00020995,2]
[349754385,1737413472227,-500.0,0.00020995,2]
[349754386,1737413472237,-753.44,0.00020995,2]
[349754387,1737413472246,-1162.69,0.00020995,2]
[349754388,1737413472258,-500.0,0.00020995,2]
[349754389,1737413472268,-500.0,0.00021,7]
[349754390,1737413472277,-500.0,0.00021,7]
[349754391,1737413472287,-500.0,0.00021,7]
[349754392,1737413472296,-500.0,0.00021,7]
[349754393,1737413472306,-500.0,0.00021,7]
[349754394,1737413472315,-500.0,0.00021,7]
[349754395,1737413472325,-500.0,0.00021,7]
[349754396,1737413472334,-500.0,0.00021,7]
[349754397,1737413472343,-399.82,0.00021,7]
[349754398,1737413472353,-500.0,0.00021,7]
[349754399,1737413472363,-500.0,0.00021,7]
[349754400,1737413472372,-500.0,0.00021,7]
[349754401,1737413472382,-500.0,0.00021,7]
[349754402,1737413472391,-500.0,0.00021,7]
[349754403,1737413472400,-500.0,0.00021,7]
[349754404,1737413472410,-500.0,0.00021,7]
[349754405,1737413472419,-500.0,0.00021,7]
[349754406,1737413472429,-500.0,0.00021,7]
[349754407,1737413472438,-500.0,0.00021,7]
[349754408,1737413472447,-500.0,0.00021,7]
[349754409,1737413472457,-500.0,0.00021,7]
[349754410,1737413472467,-500.0,0.00021,7]
[349754411,1737413472476,-500.0,0.00021,7]
[349754412,1737413472486,-500.0,0.00021,7]
[349754413,1737413472495,-500.0,0.00021,7]
[349754414,1737413472505,-500.0,0.00021,7]
[349754415,1737413472514,-419.7,0.00021,7]
[349754416,1737413472523,-500.0,0.00021,7]
[349754417,1737413472533,-500.0,0.00021,7]
[349754418,1737413472542,-299.93067012,0.00021,7]
[349754419,1737413472552,-688.86947225,0.00021051,2]
[349754420,1737413472561,-189.22168766,0.00021094,2]
[349754421,1737413472571,-500.0,0.00021095,2]
[349754422,1737413472580,-500.0,0.00021095,2]
[349754423,1737413472589,-544.3,0.00021095,2]
[349754424,1737413472599,-500.0,0.00021095,2]
[349754425,1737413472608,-519.16740805,0.00021095,2]
[349754426,1737413472618,-500.0,0.00021095,2]
[349754427,1737413472627,-500.0,0.00021095,2]
[349754428,1737413472636,-668.05,0.00021095,2]
[349754429,1737413472646,-505.78,0.00021095,2]
[349754430,1737413472655,-569.13,0.00021095,2]
[349754431,1737413472665,-500.0,0.00021095,2]
[349754432,1737413472674,-621.99,0.00021095,2]
[349754433,1737413472684,-628.24,0.00021095,2]
[349754434,1737413472693,-500.0,0.00021095,2]
[349754435,1737413472703,-500.0,0.00021095,2]
[349754436,1737413472713,-1327.66,0.00021095,2]
[349754437,1737413472723,-500.0,0.00021095,2]
[349754438,1737413472732,-500.0,0.00021095,2]
[349754439,1737413472743,-500.0,0.00021095,2]
[349754440,1737413472753,-500.0,0.00021095,2]
[349754441,1737413472763,-500.0,0.00021095,2]
[349754442,1737413472772,-480.83506749,0.00021095,2]
[349754443,1737413472782,-561.33,0.00021095,2]
[349754444,1737413472791,-500.0,0.00021095,2]
[349754445,1737413472801,-500.0,0.00021095,2]
[349754446,1737413472810,-500.0,0.00021095,2]
[349754447,1737413472819,-500.0,0.00021095,2]
[349754448,1737413472828,-500.0,0.00021095,2]
[349754449,1737413472837,-261.50433266,0.00021095,2]
[349754450,1737413472847,-528.71,0.00021095,2]
[349754451,1737413472857,-501.3,0.00021095,2]
[349754452,1737413472866,-500.0,0.00021095,2]